Workbook

Sheet Performancetest
A2: j | G2: Driftskonditioner under performancetest
A3: =IF(A2="j","n","J") -> n
C4: Afkast | E4: Indblæsning
B5: Luftmængde [m3/h] | C5: =G7*(273+C8)/(273+20) -> 25188.7116 | E5: =M12*(273+E8)/(273+20) -> 28465.21229 | H5: Tafkast,ind [°C] | I5: Rh. | L5: Tafkast,ud [°C]
B6: DTmellemkreds / DTindblæsning | E6: =J17 -> 0.9083 | H6: 23.1 | I6: 0.30249 | J6: =C10 -> 120.1169124 | K6: Pa | L6: =C26 -> 10.17266225 | N6: Afkast
B7: UA [W/K] | C7: =1/(Datablad!D38/(G7/3600*1.2*1000)^0.8+Datablad!D39/Performancetest!C15^0.8)*O7*O8^0.2*((J18-1)*Datablad!J4+1) -> 43502.43661 | E7: =1/(Datablad!F38/Performancetest!E14^0.8+Datablad!F39/Performancetest!E15^0.8)*O12*O13^0.2 -> 45881.73328 | G7: 24925 | N7: vekslere i serie | O7: 1
B8: Lufttemperaturind [°C] | C8: =H6 -> 23.1 | E8: =L11 -> 5.4 | G8: Nm3/h | J8: =C11 -> 96.8534043 | K8: kPa | N8: vekslere i parallel | O8: 1
B9: Antal slag [-] | C9: =INT(Datablad!D10*Performancetest!O7) -> 18 | E9: =INT(Datablad!F10*Performancetest!O12) -> 18 | I9: =K9+C27*1000/C15 -> 18.37103452 | J9: °C | K9: =H6-C27/C15/C20*1000 -> 8.60179494 | L9: °C
B10: Tryktabluftside [Pa] | C10: =Datablad!D11*(Performancetest!C5/Datablad!D6)^1.8*$O$7*$O$8^(-1.8)*C31/Datablad!D31 -> 120.1169124 | E10: =Datablad!F11*(Performancetest!E5/Datablad!F6)^1.8*$O$12*O13^(-1.8)*E31/Datablad!F31 -> 192.9116384 | H10: Tindblæsning,ud [°C] | L10: Tindblæsning,ind [°C]
B11: Tryktabvæskeside [kPa] | C11: =Datablad!D12*(Performancetest!C15/Datablad!D16)^1.9*O7*O8^(-1.9) -> 96.8534043 | E11: =Datablad!F12*(Performancetest!E15/Datablad!F16)^1.9*O12*O13^(-1.9) -> 96.8534043 | H11: =E25 -> 16.15552084 | J11: =E11 -> 96.8534043 | K11: kPa | L11: 5.4 | N11: Indblæsning
M12: 29958 | N12: vekslere i serie | O12: 1
B13: Densitet [kg/m3] | C13: =352/(273+C8) -> 1.188787572 | E13: =352/(273+E8) -> 1.264367816 | J13: =E10 -> 192.9116384 | K13: Pa | M13: Nm3/h | N13: vekslere i parallel | O13: 1
B14: Cluft [W/K] | C14: =C5/3600*C13*1000*J18 -> 8317.785362 | E14: =E5/3600*E13*1000 -> 9997.360637 | G14: Effektivitet Indblæsning [%] | I14: =E23*100 -> 60.76565449
B15: Cvæske [W/K] | C15: =E15 -> 11006.67251 | E15: =E14/E6 -> 11006.67251 | G15: =IF(AVERAGE(L6,K9)<1,"Risiko for tilrimning","Ingen risiko for tilrimning") -> Ingen risiko for tilrimning
B16: NTUvæske [-] | C16: =C7/C15 -> 3.952369491 | E16: =E7/E15 -> 4.168538062
B17: NTUluft [-] | C17: =C7/C14 -> 5.230050393 | E17: =E7/E14 -> 4.589384633 | G17: DT væske/ DT luft kold side | J17: 0.9083
B18: Zvæske = Cvæske/Cluft | C18: =C15/C14 -> 1.3232696 | E18: =E15/E14 -> 1.100957833 | G18: Formel varmefylde afkast kJ/kgK | J18: 1
B20: Effektivitetvæskeside [-] | C20: =tempvirkgrad(C16,C18,C9) -> 0.6738240729 | E20: =tempvirkgradmedstr(E16,E18,E9)*(A3="j")+tempvirkgrad(E16,E18,E9)*(A2="j") -> 0.7531580897
B21: Effektivitetluftside [-] | C21: =C20*C18 -> 0.8916509111 | E21: =E20*E18 -> 0.8291952986
B22: DT i strømningsretning [°C] | C22: =(C8-C26) -> 12.92733775 | E22: =E25-E8 -> 10.75552084
B23: Samlet effektivitet indblæsning [-] | E23: =E21*C21/(E21*E14/C14+C21-E21*C21*E14/E15) -> 0.6076565449 | G23: Vejledning
B24: Samlet effektivitet udsugning [-] | C24: =E23*(E14/C14) -> 0.730358065 | G24: 1. | H24: Der skal indtastes værdier i felterne med røde tal for luftflow (luftflow i Nm3/h) og temperaturer
B25: Tindblæsning,ud [°C] | E25: =E8+E23*(C8-E8) -> 16.15552084 | G25: 2. | H25: Hvis der er etableret supplerende vekslere i serie (efter hinanden i luftretningen) indtastes den forholdsmæssige størrelse ifht. 1
B26: Tafkast,ud [°C] | C26: =-(C8-E8)*C24+C8 -> 10.17266225 | G26: 3. | H26: Hvis der er etableret supplerende vekslere i parallel (ved siden af hinanden i luftretningen) indtastes den forholdsmæssige størrelse ifht. 1
B27: Ydelse [kW] | C27: =C14*(C8-C26)/1000 -> 107.5268207 | E27: =E14*(E25-E8)/1000 -> 107.5268207
B28: Flow i mellemkreds [m3/h] | D28: =E15/3600/1050*3600 -> 10.48254524
B29: Tmellemkreds,lav | D29: =K9 -> 8.60179494 | G29: Performancetest
B30: Tmellemkreds,høj | D30: =I9 -> 18.37103452 | G30: 1. | H30: Effektivitet af varmeflader | J30: Sammenlig de faktisk målte Tafkast,ud og Tindblæsning,ind med de værdier der er i diagrammet. Hvis den faktisk målte Tafkast,ud er lavere end den beregnede værdi i diagrammet, og den faktisk målte Tindblæsning,ud er højere end den beregnede værdi i diagrammet er effektiviteten højere end anført på databladet. Hvis det forholder sig modsat er effektiviteten lavere end anført på databladet.
B31: Middel temp K | C31: =273+AVERAGE(H6,L6) -> 289.6363311 | E31: =273+AVERAGE(H11,L11) -> 283.7777604
B32: ro | C32: =352/C31 -> 1.215317148 | E32: =352/E31 -> 1.24040728
G35: 2. | H35: Tryktab på luft- og væskeside | J35: Sammenlig de faktisk målte tryktab over de to varmeflader på både luft- og væskesiden. Hvis de faktisk målte tryktab er lavere end de beregnede værdier i diagrammet har fladerne lavere tryktab end anført på databladet. Hvis det forholder sig modsat er tryktabene større end anført på databladet.
B47: Varm | C47: Kold
B48: =H6 -> 23.1 | C48: =L6 -> 10.17266225 | I48: 0.01761752188 | K48: 0.01763355421
B49: =I9 -> 18.37103452 | C49: =K9 -> 8.60179494 | I49: 0.04605270165 | K49: 0.04605270165
B50: =H11 -> 16.15552084 | C50: =L11 -> 5.4
H51: Xind | I51: 0.009260084225
B52: Xind | C52: =XW(H6,I6) -> 0.005281959224 | H52: Xmin | I52: 0.003845788783 | J52: beregnet Fi min = 0,9
B53: Xmin | C53: =XW(K9,0.9) -> 0.006450615997 | H53: Kondens | I53: 0.002670243838
B54: Kondens | C54: =(C52-C53)*C24 -> -0.0008535378991 | H54: Ford.varme J/kgtør | I54: 6542.097403
B55: Tillæg Cp | C55: =C54*2450*1000/(H6-L6) -> -161.7632256 | H55: Tillæg Cp | I55: 340.1288162
B56: Varmefylde eff. | C56: =MAX(1,1+C55/1000) -> 1 | H56: Formel cp | I56: 1.340128816

Sheet Datablad
B2: j
B3: =IF(B2="j","n","J") -> n | H3: Driftskonditioner jf. datablad | Y3: Function tempvirkgrad(NV, ZV, slag) (væskesiden)
J4: 0.4 | Z4: varm | AA4: kold
D5: Afkast | F5: Indblæsning | I5: Tafkast,ind [°C] | J5: Rh. | M5: Tafkast,ud [°C] | Z5: =I6 -> 25 | AA5: =M6 -> 3.401881564
C6: Luftmængde [m3/h] | D6: =H7*(273+D9)/(273+20) -> 25410.34812 | F6: =N12*(273+F9)/(273+20) -> 22255.37201 | I6: 25 | J6: 0.4 | K6: 121 | L6: Pa | M6: =D27 -> 3.401881564 | Z6: =J9 -> 18.29798117 | AA6: =L9 -> -0.5225523037
C7: DTmellemkreds / DTindblæsning | F7: =K21 -> 0.6767 | H7: 24984 | Z7: =I11 -> 15.81222621 | AA7: =M11 -> -12
C8: UA [W/K] | D8: =K19*((K22-1)*J4+1) -> 51293.96037 | F8: =K20 -> 46000 | H8: Nm3/h | K8: 120 | L8: kPa
C9: Lufttemperaturind [°C] | D9: =I6 -> 25 | F9: =M11 -> -12 | J9: =L9+D28*1000/D16 -> 18.29798117 | K9: °C | L9: =D9-D28/D16*1000/D21 -> -0.5225523037 | M9: °C
C10: Antal slag [-] | D10: =K17 -> 18 | F10: =K17 -> 18 | I10: Tindblæsning,ud [°C] | M10: Tindblæsning,ind [°C]
C11: Tryktabluftside [Pa] | D11: =K6 -> 121 | F11: =K13 -> 120 | I11: =F26 -> 15.81222621 | K11: 120 | L11: kPa | M11: -12
C12: Tryktabvæskeside [kPa] | D12: =K8 -> 120 | F12: =K11 -> 120 | N12: 24984
C13: kg/sek | D13: =D6*D14/3600 -> 8.337474403 | F13: =F6*F14/3600 -> 8.337474403 | K13: 120 | L13: Pa | N13: Nm3/h
C14: Densitet [kg/m3] | D14: =352/(273+D9) -> 1.181208054 | F14: =352/(273+F9) -> 1.348659004 | H14: Effektivitet indblæsning [%] | K14: =(I11-M11)/(I6-M11)*100 -> 75.16817894
C15: Cluft [W/K] | D15: =D6/3600*D14*1000*K22 -> 10736.29283 | F15: =F6/3600*F14*1000 -> 8337.474403 | H15: Omtrentligt flow i væskekreds [m3/h] | K15: =E29 -> 11.73407982
C16: Cvæske [W/K] | D16: =F16 -> 12320.78381 | F16: =F15/F7 -> 12320.78381 | H16: Fladedata
C17: NTUvæske [-] | D17: =D8/D16 -> 4.163205943 | F17: =F8/F16 -> 3.733528704 | H17: Antal slag afkast [-] | K17: 18
C18: NTUluft [-] | D18: =D8/D15 -> 4.777623076 | F18: =F8/F15 -> 5.517258318 | H18: Antal slag indblæsning [-] | K18: 18
C19: Zvæske = Cvæske/Cluft | D19: =D16/D15 -> 1.14758269 | E19: =AVERAGE(D19,F19) -> 1.312671203 | F19: =F16/F15 -> 1.477759716 | H19: UA afkast [W/K] | K19: 46000
H20: UA indblæsning [W/K] | K20: 46000
C21: Effektivitetvæskeside [-] | D21: =tempvirkgrad(D17,D19,D10) -> 0.7374079697 | F21: =tempvirkgradmedstr(F17,F19,F10)*(B3="j")+tempvirkgrad(F17,F19,F10)*(B2="j") -> 0.6211811067 | H21: DTmellemkreds / DTindblæsning | K21: 0.6767
C22: Effektivitetluftside [-] | D22: =D21*D19 -> 0.8462366216 | F22: =F21*F19 -> 0.917956416 | H22: Beregnet Cp varm side [kJ/kgK] | K22: 1.287715237
C23: DT i strømningsretning [°C] | D23: =(D9-D27) -> 21.59811844 | F23: =F26-F9 -> 27.81222621
C24: Samlet effektivitet indblæsning [-] | F24: =F22*D22/(F22*F15/D15+D22-F22*D22*F15/F16) -> 0.7516817894
C25: Samlet effektivitet udsugning [-] | D25: =F24*(F15/D15) -> 0.5837329307 | I25: Vejledning
C26: Tindblæsning,ud [°C] | F26: =F9+F24*(D9-F9) -> 15.81222621 | I26: 1. | J26: Der skal indtastes værdier i felterne med røde tal
C27: Tafkast,ud [°C] | D27: =-(D9-F9)*D25+D9 -> 3.401881564 | I27: 2. | J27: Indtast værdier for temperaturer og luftmængder (i Nm3/h) fra databladet i diagrammet
C28: Ydelse [kW] | D28: =D15*(D9-D27)/1000 -> 231.8837241 | F28: =F15*(F26-F9)/1000 -> 231.8837241 | I28: 3. | J28: Indtast antallet af slag for fladerne i tabellen
C29: Flow i mellemkreds [m3/h] | E29: =F16/3600/1050*3600 -> 11.73407982 | I29: 4. | J29: Indtast og tilpas værdierne for fladernes UA værdier, dvs. ydelse [W] / DTluft [°C]. UA værdierne justeres indtil at temperatursættene for Tafkast,ind og Tafkast,ud samt Tindblæsning,ind og Tindblæsning,ud passer med databladet.
C30: kg/s ref | D30: =5000*1.225/3600 -> 1.701388889 | F30: =5000*1.225/3600 -> 1.701388889
C31: middel T K | D31: =AVERAGE(I6,M6)+273 -> 287.2009408 | F31: =AVERAGE(I11,M11)+273 -> 274.9061131
C32: Ro | D32: =352/D31 -> 1.225622726 | F32: =352/F31 -> 1.28043715
D38: =1/K19*(H7/3600*1.2*1000)^0.8*$J$4 -> 0.01190514619 | F38: =1/F8*F15^0.8*$J$4 -> 0.01191598013
D39: =1/K19*D16^0.8*(1-$J$4) -> 0.02442890994 | F39: =1/F8*F16^0.8*(1-$J$4) -> 0.02442890994
C41: Xind | D41: =XW(I6,J6) -> 0.007832530609
C42: Xmin | D42: =XW(L9,0.9) -> 0.003487443351 | E42: beregnet Fi min = 0,9
C43: Kondens | D43: =(D41-D42)*D25 -> 0.002536370519
C44: Ford.varme J/kgtør | D44: =D43*2450000 -> 6214.107772
C45: Tillæg Cp | D45: =D44/(I6-M6) -> 287.7152374
C46: Formel cp | D46: =MAX((1000+D45)/1000,1) -> 1.287715237
I58: Kold | J58: Varm

Sheet Ark1
C11: Max
C12: =MIN(1,E16/E14) -> 0.2 | D12: eps-KM | E12: 0.8 | F12: 0.8 | G12: 0.8 | H12: 0.8 | I12: 0.8 | J12: 0.8 | K12: 0.8 | L12: 0.8 | M12: 0.8
C13: =MIN(1,E16/E15) -> 0.2 | D13: eps-VM | E13: 0.8 | F13: 0.8 | G13: 0.8 | H13: 0.8 | I13: 0.8 | J13: 0.8 | K13: 0.8 | L13: 0.8 | M13: 0.8
D14: CK | E14: 1 | F14: 1 | G14: 1 | H14: 1 | I14: 1 | J14: 1 | K14: 1 | L14: 1 | M14: 1
D15: CV | E15: 1 | F15: 1 | G15: 1 | H15: 1 | I15: 1 | J15: 1 | K15: 1 | L15: 1 | M15: 1
D16: Cm | E16: 0.2 | F16: 0.4 | G16: 0.6 | H16: 0.8 | I16: 1 | J16: 1.2 | K16: 1.4 | L16: 1.6 | M16: 1.8
D18: EPSK | E18: =E12*E13/(E12*E14/E15+E13-E12*E13*E14/E16) -> -0.4 | F18: =F12*F13/(F12*F14/F15+F13-F12*F13*F14/F16) -> -2882303761517118 | G18: =G12*G13/(G12*G14/G15+G13-G12*G13*G14/G16) -> 1.2 | H18: 0.8 | I18: 0.6666666667 | J18: 0.6 | K18: 0.56 | L18: 0.5333333333 | M18: 0.5142857143
D21: T | E21: mmHG | F21: mBar
D22: 0 | E22: =EXP(20.386-5132/(273.15+D22)) -> 4.942090376 | F22: =1013/760*E22 -> 6.587286251 | I22: =XW(20,0.3) -> 0.004354337331
D23: 10 | E23: =EXP(20.386-5132/(273.15+D23)) -> 9.595853678 | F23: =1013/760*E23 -> 12.79026286
D24: 20 | E24: =EXP(20.386-5132/(273.15+D24)) -> 17.80721936 | F24: =1013/760*E24 -> 23.73514896
D25: 30 | E25: 31.72442601 | F25: 42.28532045
D26: 40 | E26: 54.47204801 | F26: 72.6055061
D27: 50 | E27: 90.45298967 | F27: 120.5643139
D28: 60 | E28: 145.6967694 | F28: 194.1984571
D29: 70 | E29: 228.2499286 | F29: 304.2331285
D30: 80 | E30: 348.6022104 | F30: 464.6500515
D31: 90 | E31: 520.1402995 | F31: 693.2922676
D32: 100 | E32: 759.6194876 | F32: 1012.492817
